Cogmind - Beta 16.1 @@@ ROGUE MODE // 2026.04.03 @ 00:06:12 Player: terminate1600 Result: Destroyed by as-04189 with Assembled Blade Performance ------------- Evolutions (0) 0 Regions Visited (0) 0 Robots Destroyed (0) 0 Value Destroyed (0) 0 Prototype IDs (0) 0 Alien Tech Used (0) 0 Bonus (0) 0 TOTAL SCORE: 0 Bonus ------- None Cogmind --------- Core Integrity 0/250 Matter 300/300 Energy 100/100 System Corruption 6% Temperature Cool (0) Movement Core (50) Location -11/Scrapyard Parts ------- > --- POWER (1) -------- (None) > --- PROPULSION (2) --- (None) > --- UTILITY (2) ------ (None) > --- WEAPON (2) ------- (None) > --- INVENTORY (5) ---- Ion Engine Wheel Wheel Peak State ------------ > --- POWER ------------ Ion Engine > --- PROPULSION ------- Light Treads Wheel > --- UTILITY ---------- Small Storage Unit > --- WEAPON ----------- EM Pulse Gun Assault Rifle > --- INVENTORY -------- (None) [Rating: 6] Favorites ----------- Power Ion Engine Engine Ion Engine Propulsion Light Treads Treads Light Treads Wheel Wheel Utility Small Storage Unit Storage Small Storage Unit Weapon Assault Rifle Energy Gun EM Pulse Gun Ballistic Gun Assault Rifle Build | -11 ------- Run | Yrd Slots Evolved . | . Power . | . Propulsion . | . Utility . | . Weapon . | . Parts Attached 7 | 7 Power 1 | 1 Engine 1 | 1 Core . | . Reactor . | . Propulsion 3 | 3 Treads 2 | 2 Leg . | . Wheel 1 | 1 Hover . | . Flight . | . Utility 1 | 1 Device . | . Storage 1 | 1 Processor . | . Hackware . | . Protection . | . Artifact . | . Weapon 2 | 2 Energy Gun 1 | 1 Energy Cannon . | . Ballistic Gun 1 | 1 Ballistic Cannon . | . Launcher . | . Special Weapon . | . Impact Weapon . | . Slashing Weapon . | . Piercing Weapon . | . Special Melee Weapon . | . Unidentified Prototypes . | . Parts Lost 5 | 5 Power . | . Propulsion 2 | 2 Utility 1 | 1 Weapon 2 | 2 Highest Loss Streak 4 | 4 To Critical Strikes . | . Average Backups 2 | 2 Power . | . Propulsion 1 | 1 Utility . | . Weapon . | . Tool/Special . | . Unused Backups 3 | 3 Power 1 | 1 Propulsion 2 | 2 Utility . | . Weapon . | . Tool/Special . | . Average Slot Usage (%) . | . Peak Build Rating 6 | 6 Average Rating 5 | 5 On Entrance . | . Avg Prop Armor Cover (%) 4 | 4 Naked Turns . | . Heaviest Build 14 | 14 Greatest Support 40 | 40 Greatest Overweight (x) 1 | 1 Average Overweight (x) . | . Largest Inventory Capacity 8 | 8 Average Capacity 7 | 7 Most Carried 5 | 5 Average Carried 2 | 2 Final Capacity 5 | 5 Final Carried 3 | 3 Class Distribution -------------------- None Dominant Class ---------------- None Resources | -11 ----------- Run | Yrd Matter Collected 304 | 304 Remotely . | . Salvage Created 24 | 24 Parts . | . Haulers Intercepted . | . Recyclers Shooed . | . Parts Field Recycled . | . Retrieved Matter . | . Parts Self-Destructed . | . Prevented . | . Parts Restored . | . Kills | -11 ------- Run | Yrd Combat Hostiles Destroyed 3 | 3 Melee 1 | 1 Guns 2 | 2 Classes Destroyed 1 | 1 Assembled 3 | 3 Best Kill Streak 2 | 2 Combat Bots Only 2 | 2 Max Kills in Single Turn 1 | 1 Gunslinging . | . Exploded . | . Melee 1 | 1 Uniques/NPCs Destroyed . | . Combat | -11 -------- Run | Yrd Hostile Shots Fired 39 | 39 Missed 7 | 7 Hits 32 | 32 Melee 27 | 27 Projectile 5 | 5 Critical Strikes 1 | 1 Damage Taken 901 | 901 Core 266 | 266 Absorbed by Shields . | . Core Remaining (%) . | . Volleys Fired 21 | 21 Largest 2 | 2 Hottest 60 | 60 Shots Fired 29 | 29 Gun 29 | 29 Cannon . | . Launcher . | . Special . | . Kinetic 21 | 21 Thermal . | . Explosive . | . Electromagnetic 8 | 8 Robot Hit Streak 4 | 4 Robot Miss Streak 4 | 4 Penetration Max . | . Secondary Targets . | . Shots Hit Robots 12 | 12 Core Hits 12 | 12 Critical Kills . | . Critical Parts Destroyed . | . Critical Strikes . | . Melee Attacks . | . Impact . | . Slashing . | . Piercing . | . Sneak Attacks . | . Combat Hostiles . | . Follow-up Attacks . | . Damage Inflicted 154 | 154 Guns 125 | 125 Cannons . | . Explosions . | . Melee . | . Ramming 29 | 29 Kinetic 103 | 103 Thermal . | . Explosive . | . Electromagnetic 22 | 22 Impact . | . Slashing . | . Piercing . | . Highest Corruption 6 | 6 Average Corruption 2 | 2 Corruption Purged . | . Corruption Blocked . | . Overload Shots . | . Overflow Damage . | . Projectiles . | . Explosions . | . Melee . | . Knockbacks . | . Impact . | . Kinetic . | . Secondary . | . Self-Inflicted Damage 7 | 7 Shots . | . Rammed 20 | 20 Targets Rammed 20 | 20 Kicked . | . Crushed . | . Highest Temperature . | . Average Temperature . | . Received Heat Transfer . | . Siege Activations . | . Martial Activations . | . Shielding Activations . | . Robots Disrupted . | . Combat Hostiles . | . Robots Corrupted . | . Combat Hostiles . | . Parts Fried . | . Impact Corruptions . | . Robots Melted . | . Combat Hostiles . | . Parts Melted . | . Heat Transferred . | . Parts Sabotaged . | . Parts Stolen . | . Parts Stripped . | . Power Chain Reactions . | . Alert | -11 ------- Run | Yrd Maximum Alert Level . | . Low Security (%) 100 | 100 Level 1 . | . Level 2 . | . Level 3 . | . Level 4 . | . Level 5 . | . High Security . | . Max Security . | . Peak Influence . | . Initial . | . Average . | . Influence Increases . | . Influence Decreases . | . Squads Dispatched . | . Investigation . | . Extermination . | . Reinforcement . | . Assault . | . Garrison . | . Intercept . | . Searches Triggered . | . Construction Impeded . | . Haulers Reinforced . | . Active Scanning Responses . | . Cargo Convoy Interrupts . | . Stealth | -11 --------- Run | Yrd Distress Signals . | . Communications Jammed . | . Distress Signals . | . Times Spotted 4 | 4 Peak Tracking Total 2 | 2 Tactical Retreats . | . Traps | -11 ------- Run | Yrd Traps Triggered . | . Indirectly . | . Trap Hack Attempts . | . Triggered . | . Disarmed . | . Reprogrammed . | . Reused . | . Traps Extracted . | . Installed . | . Triggered . | . Machines | -11 ---------- Run | Yrd Machines Disabled . | . Max in Single Turn . | . Machines Repaired . | . Machines Dismantled . | . Machines Sabotaged . | . Overloaded Fab Kills . | . Hacking | -11 --------- Run | Yrd Machines Accessed . | . Terminals . | . Fabricators . | . Repair Stations . | . Recycling Units . | . Scanalyzers . | . Garrison Access . | . Total Hacks . | . Successful . | . Failed . | . Catastrophic . | . Database Lockouts . | . Manual . | . Terminals . | . Fabricators . | . Repair Stations . | . Recycling Units . | . Scanalyzers . | . Garrison Access . | . Terminal Hacks . | . Fabricator Hacks . | . Repair Station Hacks . | . Recycling Unit Hacks . | . Scanalyzer . | . Garrison Access Hacks . | . Unauthorized Hacks . | . Terminals . | . Fabricators . | . Repair Stations . | . Recycling Units . | . Scanalyzers . | . Garrison Access . | . Data Cores Recovered . | . Used . | . Hacking Detections . | . Full Trace Events . | . Feedback Events . | . Feedback Blocked . | . Robot Schematics Acquired . | . Robots Built . | . Authchips . | . Time . | . Total Robot Build Rating . | . Part Schematics Acquired . | . Parts Built . | . Authchips . | . Time . | . Total Part Build Rating . | . Part Studies Acquired . | . Parts Repaired . | . Time . | . Parts Recycled . | . Recycled Matter . | . Retrieved Matter . | . Retrieved Components . | . Parts Scanalyzed . | . Part Schematics Acquired . | . Parts Damaged . | . Bothacking | -11 ------------ Run | Yrd Used RIF Installer . | . Robots Hacked . | . Non-combat . | . Combat . | . Robot Hacks Applied . | . Relay Couplers Released . | . Fabnet Peak Effective % . | . Robots Rewired . | . Allies Hacked . | . Hacks Repelled . | . Allies | -11 -------- Run | Yrd Total Allies . | . Largest Group . | . Highest-Rated Group . | . Highest-Rated Ally . | . Total Orders . | . Ally Attacks . | . Total Damage . | . Kills . | . Allies Corrupted . | . Allies Melted . | . Intel | -11 ------- Run | Yrd Active Infowar (turns) . | . Robot Analysis Total . | . Derelict Logs Recovered . | . Drone Launches . | . Drone Recoveries . | . Exploration | -11 ------------- Run | Yrd Turns Passed 1620 | 1620 Spaces Moved 281 | 281 Core 42 | 42 Treads 238 | 238 Legs . | . Wheels 1 | 1 Hover . | . Flight . | . Fastest Speed 50 | 50 Average Speed 143 | 143 Slowest Speed 160 | 160 Overloaded Moves . | . Propulsion Burnouts . | . Robots Hopped . | . Potential Cave-ins . | . Cave-ins Triggered . | . Exploration Rate (%) 18 | 18 Regions Visited . Branch Regions . Pre-discovered Areas . | . Known Exits Taken . | . Unknown Exits Taken . | . Scrap Searched . | . Spaces Dug . | . Terrain Destroyed . | . Melee . | . Projectile . | . AOE . | . Terrain Rammed . | . Walls Destroyed . | . Machines Disabled . | . Actions | -11 --------- Run | Yrd Total 1460 | 1460 Wait 1120 | 1120 Move 281 | 281 Hop . | . Pick Up 10 | 10 Fast Attach . | . Attach 6 | 6 Detach . | . Swap 1 | 1 Drop 1 | 1 Fire 21 | 21 Melee . | . Ram 5 | 5 Kick . | . Crush 15 | 15 Escape Stasis . | . Rewire . | . Trap . | . Miscellaneous . | . Route ------- -11/Scrapyard (discovered 1 exit: [*Mat]) History --------- Turn | Location | Event 21 | -11/Scrapyard | Discovered new exit (range 16) 1121 | -11/Scrapyard | Assembled infested the area 1598 | -11/Scrapyard | Core integrity fell below 50% 1620 | -11/Scrapyard | Core integrity fell below 20% 1621 | -11/Scrapyard | Destroyed by as-04189 with Assembled Blade Last Messages --------------- T-07 Excavator is excavating. as-84547 destroyed. EM Pulse Gun destroyed. as-27409 destroyed. Acquired 24 matter. Acquired 10 matter. Assault Rifle destroyed. System corrupted by crushing effect (+2). Slammed into as-26861. Ion Engine severed. Slammed into as-26861. Lgt. Treads destroyed. Slammed into as-26861. Sml. Storage Unit destroyed. Lgt. Treads destroyed. System corrupted by crushing effect (+2). Slammed into as-26861. as-26861 destroyed. [Achievement: Fist Fight] Slammed into as-04189. Map ----- +----------------------------------------------------+ | #???##########?????? #?????????????????? | | ### ####?????????????????? #?????????????????? | | ??# #????????????????????? #?????????????????? | | ??# #???????????????????? #?????????????????? | | ??# #????????????######? #?????????????????? | | ### ############## # #?????????????????? | | # #?????????????????? | | #?????????????????? | | ### ########### ### # #?????????????????? | | ? #???????? ## ##########?????????????????? | | ????????# ## # #???????????????????? | | ?????????# ## # #???????????????????? | | ??????????# ## #???????????????????? | | #??????????## ## # #???????????????????? | | ????????????## ### ## ##???????????????????? | | ?????????????#####?# #?#####????????????????????? | | ????????????######?# #??????????????????????????? | | ???????????## # #??????????????????????????? | | ???????????# # #??????????????????????????? | | ???????????# #??????????????????????????? | | ???????????# # #??????????????????????????? | | ???????????## ### #??????????????????????????? | | ????????????###???## ##?????######??????????????? | | ???????????######## ####### #??????????????? | | ???????????# %%%%%%% #??????????????? | | ???????????# !%* %@a%* #??????????????? | | ???????????# ##### = ####### #??????????????? | | ???????????#???##### ####????## ###########?????? | | ??????????????## ####### # #?????? | | ??????????????# # # #?????? | | ??????????????# # #?????? | | ??????????? # # # #?????? | | ??????????# # # # ###########?????? | | ??????????###?# ####### =##??????????????? | | ??????????????# #?????# % #??????????????? | | ??????????????# #?????# ###??????????????? | | ??????????????###########?????###????????????????? | | ?????????????????????????????????????????????????? | | ?????????????????????????????????????????????????? | | ?????????????????????????????????????????????????? | | ?????????????????????????????????????????????????? | | ?????????????????????????????????????????????????? | | ?????????????????????????????????????????????????? | | ?????????????????????????????????????????????????? | | ?????????????????????????????????????????????????? | | ?????????????????????????????????????????????????? | | | | | | | | | +----------------------------------------------------+ Best States ------------- Heat Dissipation 25 Energy Generation 10 Energy Capacity 250 Matter Stores 300 Matter Capacity 300 Sight Range 16 Terrain Scan Density 10 Evasion (%) 50 Recoil Reduction 2 Item Schematics ----------------- None Robot Schematics ------------------ None Fabricated ------------ Nothing Repaired ---------- Nothing Studied --------- None Alien Tech Used ----------------- None Achievements -------------- Curiosity Killed The Cat Fist Fight Challenges ------------ None Game ------ Seed CobblerJammingCartridge Manual? 0 Play Time 00:18:26 Cumulative 1.0 hours Start 2026.04.02 @ 23:56:24 End 2026.04.03 @ 00:06:12 Sessions 0 Manual Loads 0 Difficulty Rogue Special Mode None Game No. 4 Rogue 4 Adventurer 0 Explorer 0 Win Type - Total 0 Types 0/0/0/0/0/0/0/0/0/0 Lore% 0 Gallery% 2 Achievement% 2 Wizard Run 0 Options --------- Layout 1 ASCII 0 Keyboard 0 Movement Arrows Keybinds 0 Fullscreen 2 Font 32/SmallcapsGlow Map View 77x35 Zoom Use 23% Tactical HUD 0 Map Filters NONE Filters NONE Steam 1 RUN: ec825f4e-76c9-43de-8e24-169074371657